lending/lending_fUSD_20240807
["ID","MTS","AMOUNT","RATE_DAILY","PERIOD"]
[334411927,1723056650527,-501.26624558,0.00022739,5]
[334411928,1723056650536,-500.0,0.00022739,5]
[334411929,1723056650547,-500.0,0.00022739,5]
[334411930,1723056650556,-517.23,0.00022739,5]
[334411931,1723056650566,-500.0,0.00022739,5]
[334411932,1723056650576,-500.0,0.00022739,5]
[334411933,1723056650586,-547.785,0.00022739,5]
[334411934,1723056650596,-500.0,0.00022739,5]
[334411935,1723056650607,-500.0,0.00022739,5]
[334411936,1723056650617,-500.0,0.00022739,5]
[334411937,1723056650627,-500.0,0.00022739,5]
[334411938,1723056650638,-500.0,0.00022739,5]
[334411939,1723056650649,-500.0,0.00022739,5]
[334411940,1723056650660,-500.0,0.00022739,5]
[334411941,1723056650669,-500.0,0.00022739,5]
[334411942,1723056650683,-500.0,0.00022739,5]
[334411943,1723056650693,-500.0,0.00022739,5]
[334411944,1723056650703,-367.73330489,0.00022739,5]
[334411945,1723056650714,-2522.16,0.00022739,5]
[334411946,1723056650725,-2522.16,0.00022739,5]
[334411947,1723056650736,-2522.16,0.00022739,5]
[334411948,1723056650746,-2522.16,0.00022739,5]
[334411949,1723056650756,-2522.16,0.00022739,5]
[334411950,1723056650766,-2522.16,0.00022739,5]
[334411951,1723056650777,-2522.16,0.00022739,5]
[334411952,1723056650787,-2522.16,0.00022739,5]
[334411953,1723056650796,-2522.16,0.00022739,5]
[334411954,1723056650807,-2522.16,0.00022739,5]
[334411955,1723056650817,-469.554916,0.00022739,5]
[334411956,1723056650827,-500.0,0.00022739,5]
[334411957,1723056651087,-500.0,0.00022739,5]
[334411958,1723056651098,-500.0,0.00022739,5]
[334411959,1723056651107,-420.58024,0.00022739,5]
[334411960,1723056651117,-200.0,0.00022739,5]
[334411961,1723056651127,-500.0,0.00022739,5]
[334411962,1723056651138,-500.0,0.00022739,5]
[334411963,1723056651152,-257.39,0.00022739,5]
[334411964,1723056651162,-500.0,0.00022739,5]
[334411965,1723056651171,-500.0,0.00022739,5]
[334411966,1723056651180,-500.0,0.00022739,5]
[334411967,1723056651191,-500.0,0.00022739,5]
[334411968,1723056651201,-500.0,0.00022739,5]
[334411969,1723056651211,-500.0,0.00022739,5]
[334411970,1723056651225,-500.0,0.00022739,5]
[334411971,1723056651234,-500.0,0.00022739,5]
[334411972,1723056651244,-500.0,0.00022739,5]
[334411973,1723056651254,-500.0,0.00022739,5]
[334411974,1723056651263,-500.0,0.00022739,5]
[334411975,1723056651273,-500.09670676,0.00022739,2]
[334411976,1723056651282,-785.67,0.00022739,2]
[334411977,1723056651292,-785.67,0.00022739,2]
[334411978,1723056651303,-785.67,0.00022739,2]
[334411979,1723056651314,-785.67,0.00022739,2]
[334411980,1723056651323,-785.67,0.00022739,2]
[334411981,1723056651333,-785.67,0.00022739,2]
[334411982,1723056651342,-785.67,0.00022739,2]
[334411983,1723056651352,-785.67,0.00022739,2]
[334411984,1723056651363,-785.67,0.00022739,2]
[334411985,1723056651373,-785.67,0.00022739,2]
[334411986,1723056651382,-500.0,0.00022739,5]
[334411987,1723056651392,-500.0,0.00022739,5]
[334411988,1723056651402,-309.09053873,0.00022739,5]
[334411989,1723056651411,-500.0,0.00022739,5]
[334411990,1723056651422,-500.0,0.00022739,5]
[334411991,1723056651432,-500.0,0.00022739,5]
[334411992,1723056651442,-500.0,0.00022739,5]
[334411993,1723056651452,-500.0,0.00022739,5]
[334411994,1723056651462,-500.0,0.00022739,5]
[334411995,1723056651475,-500.0,0.00022739,5]
[334411996,1723056651485,-500.0,0.00022739,5]
[334411997,1723056651495,-500.0,0.00022739,5]
[334411998,1723056651504,-500.0,0.00022739,5]
[334411999,1723056651514,-9653.7597985,0.00022767,2]
[334412000,1723056651524,-150.36,0.00022812,2]
[334412001,1723056651533,-428.19,0.00022812,2]
[334412002,1723056651543,-150.0,0.00022812,2]
[334412003,1723056651554,-150.0,0.00022812,2]
[334412004,1723056651563,-500.0,0.00022853,2]
[334412005,1723056651573,-200.0,0.000229,5]
[334412006,1723056651582,-2000.0,0.000229,2]
[334412007,1723056651591,-3092.37,0.000229,7]
[334412008,1723056651601,-192.0,0.00023,6]
[334412009,1723056651611,-494.0,0.00023,6]
[334412010,1723056651622,-642.0,0.00023,6]
[334412011,1723056651634,-739.0,0.00023,6]
[334412012,1723056651645,-165.0,0.00023,2]
[334412013,1723056651655,-150.0,0.00023,4]
[334412014,1723056651664,-202.75510398,0.00023,2]
[334412015,1723056651674,-200.0,0.00023,2]
[334412016,1723056651683,-173.0,0.00023014,2]
[334412017,1723056651692,-500.0,0.00023039,2]
[334412018,1723056651702,-150.0,0.00023071,2]
[334412019,1723056651712,-500.0,0.00023156,2]
[334412020,1723056651723,-180.0,0.00023205,2]
[334412021,1723056651732,-387.87891974,0.00023333,2]
[334412022,1723056651742,-500.0,0.00023364,2]
[334412023,1723056651751,-150.0,0.000235,4]
[334412024,1723056651761,-600.0,0.0002352,3]
[334412025,1723056651770,-4448.24753494,0.0002354,2]
[334412026,1723056651780,-831.31838446,0.00023554,2]
[334412027,1723056651789,-500.0,0.00023589,2]
[334412028,1723056651799,-150.0,0.00023648,2]
[334412029,1723056651809,-500.0,0.00023752,2]
[334412030,1723056651818,-500.0,0.00023766,2]
[334412031,1723056651827,-500.0,0.00023862,2]
[334412032,1723056651837,-500.0,0.00023904,2]
[334412033,1723056651846,-500.0,0.00023906,2]
[334412034,1723056651855,-500.0,0.00023972,2]
[334412035,1723056651865,-150.0,0.00023999,10]
[334412036,1723056651874,-150.0,0.00023999,10]
[334412037,1723056651883,-500.0,0.00024,2]
[334412038,1723056651895,-1000.0,0.00024,4]
[334412039,1723056651904,-297.17740872,0.00024,2]
[334412040,1723056651914,-500.0,0.00024,2]
[334412041,1723056651923,-185.0,0.00024,7]
[334412042,1723056651933,-165.0,0.00024,25]
[334412043,1723056651942,-1001.54,0.00024,2]
[334412044,1723056651952,-3000.0,0.00024,2]
[334412045,1723056651961,-3000.0,0.00024,2]
[334412046,1723056651977,-3000.0,0.00024,2]
[334412047,1723056651986,-3000.0,0.00024,2]
[334412048,1723056651996,-3006.04,0.00024,2]
[334412049,1723056652006,-165.0,0.00024,2]
[334412050,1723056652016,-39964.57582885,0.00024,4]
[334412051,1723056652026,-165.58539525,0.00024,2]
[334412052,1723056652036,-151.0,0.00024,2]
[334412053,1723056652046,-150.0,0.00024,4]
[334412054,1723056652056,-500.0,0.00024006,2]
[334412055,1723056652067,-500.0,0.00024026,2]
[334412056,1723056652077,-500.0,0.00024052,2]
[334412057,1723056652087,-500.0,0.00024108,2]
[334412058,1723056652097,-604.51153614,0.00024165,3]
[334412059,1723056652107,-150.0,0.00024225,2]
[334412060,1723056652117,-4403.57,0.00024229,2]
[334412061,1723056652127,-5000.0,0.0002423,2]
[334412062,1723056652141,-2500.0,0.00024247,2]
[334412063,1723056652151,-990.0,0.0002425,2]
[334412064,1723056652160,-2500.01,0.00024293,2]
[334412065,1723056652170,-500.0,0.00024309,5]
[334412066,1723056652180,-250.56426583,0.00024309,5]
[334412067,1723056652189,-5145.5177539,0.00024315,2]
[334412068,1723056652348,-5093.30979428,0.00024315,2]
[334412069,1723056652359,-2522.16,0.00024319,5]
[334412070,1723056652369,-500.0,0.00024319,5]
[334412071,1723056652378,-785.67,0.00024319,2]
[334412072,1723056652387,-5000.0,0.0002432,2]
[334412073,1723056652397,-216.1477688,0.0002433,2]
[334412074,1723056652407,-500.0,0.00024396,2]
[334412075,1723056652417,-2834.4031722,0.000244,14]
[334412076,1723056652426,-10616.09025538,0.00024403,2]
[334412077,1723056652436,-505.80385032,0.00024409,2]
[334412078,1723056652446,-3883.22797258,0.0002441,2]
[334412079,1723056652456,-169.70524549,0.00024412,2]
[334412080,1723056652466,-373.66329661,0.00024412,2]
[334412081,1723056652484,-82036.02180659,0.00024414,2]
[334412082,1723056652494,-373.66329661,0.00024415,2]
[334412083,1723056652504,-505.80385032,0.00024416,2]
[334412084,1723056652513,-373.66329661,0.00024416,2]
[334412085,1723056652524,-1500.0,0.00024418,2]
[334412086,1723056652534,-505.80385032,0.00024421,2]
[334412087,1723056652544,-505.80385032,0.00024421,2]
[334412088,1723056652554,-373.66329661,0.00024423,2]
[334412089,1723056652563,-3883.22797258,0.00024425,2]
[334412090,1723056652573,-2500.0,0.00024426,2]
[334412091,1723056652583,-2522.16,0.00024427,5]
[334412092,1723056652592,-500.0,0.00024427,5]
[334412093,1723056652602,-785.67,0.00024427,2]
[334412094,1723056652611,-82036.02180659,0.00024427,2]
[334412095,1723056652621,-480.0,0.0002443,5]
[334412096,1723056652631,-622.77216102,0.00024431,2]
[334412097,1723056652640,-82036.02180659,0.00024431,2]
[334412098,1723056652650,-39162.81359601,0.00024432,2]
[334412099,1723056652659,-176.17545837,0.00024433,10]
[334412100,1723056652669,-2522.16,0.00024433,5]
[334412101,1723056652679,-596.99256757,0.00024433,5]
[334412102,1723056652689,-785.67,0.00024433,2]
[334412103,1723056652699,-79823.7635402,0.00024434,2]
[334412104,1723056652711,-314.025,0.00024434,2]
[334412105,1723056652734,-1898.23326639,0.00024434,2]
[334412106,1723056652744,-622.77216102,0.00024435,2]
[334412107,1723056652754,-505.80385032,0.00024436,2]
[334412108,1723056652764,-909.23683745,0.00024437,2]
[334412109,1723056652776,-355.80403764,0.00024437,2]
[334412110,1723056652787,-360.18505011,0.00024437,2]
[334412111,1723056652799,-8990.86433018,0.00024437,2]
[334412112,1723056652808,-3883.22797258,0.00024441,2]
[334412113,1723056652817,-630.57,0.00024443,2]
[334412114,1723056652827,-3883.22797258,0.00024444,2]
[334412115,1723056652838,-373.66329661,0.00024445,2]
[334412116,1723056652847,-505.80385032,0.00024446,2]
[334412117,1723056652857,-505.80385032,0.00024447,2]
[334412118,1723056652867,-8677.81472743,0.00024453,2]
[334412119,1723056652882,-638.24848553,0.00024453,2]
[334412120,1723056652894,-1300.02704242,0.00024453,2]
[334412121,1723056652903,-3883.22797258,0.00024458,2]
[334412122,1723056652913,-306.740985,0.00024463,2]
[334412123,1723056652924,-2030.9174524,0.00024463,2]
[334412124,1723056652935,-1058.9027694,0.00024463,2]
[334412125,1723056652947,-7219.52904858,0.00024463,2]
[334412126,1723056652956,-7020.12590151,0.00024464,2]
[334412127,1723056652970,-348.7775,0.00024464,2]
[334412128,1723056652982,-31793.9101945,0.00024464,2]
[334412129,1723056652993,-373.66329661,0.00024464,2]
[334412130,1723056653002,-64816.5556328,0.00024464,2]
[334412131,1723056653015,-1266.25888955,0.00024464,2]
[334412132,1723056653026,-372.50946649,0.00024464,2]
[334412133,1723056653037,-1224.96970469,0.00024464,2]
[334412134,1723056653049,-948.10442297,0.00024464,2]
[334412135,1723056653060,-13407.62369009,0.00024464,2]
[334412136,1723056653070,-3883.22797258,0.00024467,2]
[334412137,1723056653079,-1159.36161295,0.00024469,10]
[334412138,1723056653089,-150.0,0.00024469,10]
[334412139,1723056653098,-2522.16,0.00024469,5]
[334412140,1723056653108,-2522.16,0.00024469,5]
[334412141,1723056653117,-785.67,0.00024469,2]
[334412142,1723056653127,-785.67,0.00024469,2]
[334412143,1723056653136,-373.66329661,0.0002447,2]
[334412144,1723056653148,-82036.02180659,0.0002447,2]
[334412145,1723056653159,-90544.37831041,0.0002447,2]
[334412146,1723056653170,-892.40355142,0.0002447,2]
[334412147,1723056653183,-760.32601188,0.0002447,2]
[334412148,1723056653195,-12921.63839813,0.0002447,2]
[334412149,1723056653206,-396.27712758,0.0002447,2]
[334412150,1723056653221,-966.7265502,0.0002447,2]
[334412151,1723056653234,-7272.76550001,0.0002447,2]
[334412152,1723056653246,-4534.98122466,0.0002447,2]
[334412153,1723056653389,-2276.20056685,0.00010706,2]
[334412154,1723056653399,-5253.17451487,0.00010889,2]
[334412155,1723056653458,-10450.95956996,0.00010889,2]
[334412156,1723056653474,-1566.10441081,0.00010889,2]
[334412157,1723056653485,-457.46955249,0.00010889,2]
[334412158,1723056653496,-1777.28742832,0.00010889,2]
[334412159,1723056653508,-6823.91393604,0.00010889,2]
[334412160,1723056653517,-126.30811773,0.00012928,2]
[334412161,1723056653528,-324.00018186,0.00012928,2]
[334412162,1723056653538,-507.87241414,0.00016033,2]
[334412163,1723056653551,-296.95776435,0.00016033,2]
[334412164,1723056653563,-566.62860673,0.00016033,2]
[334412165,1723056653574,-367.31086422,0.00016033,2]
[334412166,1723056653583,-624.10934651,0.0001695,2]
[334412167,1723056653593,-202.81555917,0.00016953,2]
[334412168,1723056653602,-519.91345954,0.00016999,2]
[334412169,1723056653612,-270.46597516,0.00017004,2]
[334412170,1723056653622,-500.0,0.00020124,2]
[334412171,1723056653631,-370.42703212,0.0002038,2]
[334412172,1723056653640,-155.0,0.00024124,2]
[334412173,1723056653650,-3635.1361524,0.0002447,2]
[334412174,1723056654424,-4760.65890948,0.0002447,2]
[334412175,1723056654783,-911.93183426,0.0002447,2]
[334412176,1723056654794,-31260.49999999,0.0002447,2]
[334412177,1723056654809,-317.58278286,0.0002447,2]
[334412178,1723056654822,-6004.27155349,0.0002447,2]
[334412179,1723056654836,-7024.07444932,0.0002447,2]
[334412180,1723056654849,-1569.44853826,0.0002447,2]
[334412181,1723056654862,-782.5125,0.0002447,2]
[334412182,1723056654873,-497.0220389,0.0002447,2]
[334412183,1723056654884,-7971.10885734,0.0002447,2]
[334412184,1723056654894,-39162.81359601,0.00024472,2]
[334412185,1723056654905,-158.89546919,0.00024473,2]
[334412186,1723056654914,-82036.02180659,0.00024473,2]
[334412187,1723056654924,-10616.09025538,0.00024475,2]
[334412188,1723056654935,-622.77216102,0.00024476,2]
[334412189,1723056654945,-39162.81359601,0.00024478,2]
[334412190,1723056654955,-2522.16,0.0002448,5]
[334412191,1723056654965,-785.67,0.0002448,2]
[334412192,1723056654976,-82036.02180659,0.00024481,2]
[334412193,1723056654986,-3883.22797258,0.00024482,2]
[334412194,1723056654995,-622.77216102,0.00024483,2]
[334412195,1723056655004,-39162.81359601,0.00024483,2]
[334412196,1723056655014,-622.77216102,0.00024484,2]
[334412197,1723056655023,-622.77216102,0.00024485,2]
[334412198,1723056655032,-622.77216102,0.00024488,2]
[334412199,1723056655041,-373.66329661,0.00024488,2]
[334412200,1723056655051,-39162.81359601,0.00024488,2]
[334412201,1723056655061,-505.80385032,0.00024489,2]
[334412202,1723056655070,-10616.09025538,0.00024489,2]
[334412203,1723056655079,-39162.81359601,0.00024491,2]
[334412204,1723056655089,-152.0,0.00024491,6]
[334412205,1723056655098,-3883.22797258,0.00024492,2]
[334412206,1723056655108,-10616.09025538,0.00024494,2]
[334412207,1723056655117,-4371.36405981,0.00024496,2]
[334412208,1723056655130,-6244.72619557,0.00024496,2]
[334412209,1723056655144,-1998.67380443,0.00024496,2]
[334412210,1723056655155,-2693.82653913,0.00024496,2]
[334412211,1723056655166,-586.825,0.00024496,2]
[334412212,1723056655177,-376.87925389,0.00024496,2]
[334412213,1723056655188,-436.81,0.00024496,2]
[334412214,1723056655204,-279.6363521,0.00024496,2]
[334412215,1723056655215,-1560.95,0.00024496,2]
[334412236,1723057833423,-402.36488711,0.00010319,2]
[334412237,1723057833433,-264.38460309,0.00010419,2]
[334412238,1723057833443,-203.33375775,0.00010419,2]
[334412239,1723057833453,-29.91675005,0.00010419,2]
[334412240,1723057833465,-438.8609385,0.00010419,2]
[334412241,1723057833475,-155.0,0.00010419,2]
[334412242,1723057833484,-161.0786,0.00013388,2]
[334412243,1723057833494,-297.369235,0.00013398,2]
[334412244,1723057833504,-364.03356845,0.00013799,2]
[334412245,1723057833513,-719.68870544,0.00013889,2]
[334412246,1723057833524,-347.54171027,0.0001587,2]
[334412247,1723057833535,-347.54171027,0.0001587,2]
[334412248,1723057833545,-212.93553207,0.00017259,2]
[334412249,1723057833556,-87.06446793,0.00017259,2]
[334412250,1723057833567,-499.99,0.00017534,2]
[334412251,1723057833576,-299.99,0.00017808,4]
[334412252,1723057833586,-500.0,0.00018439,2]
[334412253,1723057833596,-153.57262803,0.00018914,2]
[334412254,1723057833607,-155.0,0.00019045,2]
[334412255,1723057833617,-378.34,0.00019051,2]
[334412256,1723057833627,-210.91712052,0.0001924,2]
[334412257,1723057833636,-210.91712052,0.0001924,2]
[334412258,1723057833645,-306.66432194,0.00019387,2]
[334412259,1723057833655,-361.17776193,0.00019725,2]
[334412260,1723057833664,-150.0,0.0002,2]
[334412261,1723057833673,-2680.34123513,0.0002,2]
[334412262,1723057833685,-609.86344662,0.0002,2]
[334412263,1723057833696,-3082.03617125,0.0002,2]
[334412264,1723057833709,-11458.11436424,0.0002,2]
[334412265,1723057833718,-11736.1692254,0.0002,3]
[334412266,1723057833728,-500.0,0.00020009,2]
[334412267,1723057833737,-500.0,0.00020018,2]
[334412268,1723057833747,-500.0,0.00020027,2]
[334412269,1723057833756,-500.0,0.00020036,2]
[334412270,1723057833766,-500.0,0.00020045,2]
[334412271,1723057833776,-500.0,0.00020053,2]
[334412272,1723057833786,-500.0,0.00020062,2]
[334412273,1723057833796,-500.0,0.00020071,2]
[334412274,1723057833805,-500.0,0.0002008,2]
[334412275,1723057833815,-500.0,0.00020089,2]
[334412276,1723057833825,-500.0,0.00020097,2]
[334412277,1723057833834,-500.0,0.00020106,2]
[334412278,1723057833843,-500.0,0.00020115,2]
[334412279,1723057833855,-200.0,0.00020661,2]
[334412280,1723057833864,-500.0,0.00020694,2]
[334412281,1723057833874,-607.93583595,0.00020719,2]
[334412282,1723057833883,-410.34172593,0.00020738,2]
[334412283,1723057833892,-2751.0,0.00020739,2]
[334412284,1723057833902,-1500.0,0.00020759,5]
[334412286,1723057833911,-250.0,0.0002078,2]
[334412288,1723057833921,-2494.05,0.00020793,2]
[334412290,1723057833930,-250.0,0.00020835,2]
[334412292,1723057833939,-410.34172593,0.0002088,2]
[334412293,1723057833948,-500.0,0.00020894,2]
[334412294,1723057833958,-3904.95838947,0.00020899,2]
[334412295,1723057833968,-155.0,0.00020899,2]
[334412296,1723057833977,-3146.03145564,0.00020999,2]
[334412297,1723057833986,-6291.69894213,0.00020999,2]
[334412298,1723057833996,-6291.69894213,0.00020999,2]
[334412299,1723057834005,-692.19956514,0.00020999,2]
[334412300,1723057834015,-225.65001596,0.00021,2]
[334412301,1723057834024,-1000.0,0.00021039,2]
[334412302,1723057834034,-410.34172593,0.00021256,2]
[334412303,1723057834044,-378.34,0.00021315,2]
[334412304,1723057834054,-728.78640467,0.00021377,2]
[334412305,1723057834063,-410.34172593,0.00021443,2]
[334412306,1723057834072,-7016.0,0.000215,2]
[334412307,1723057834082,-152.0,0.00021544,3]
[334412308,1723057834091,-500.0,0.00021589,2]
[334412309,1723057834101,-182.83,0.00021589,30]
[334412310,1723057834110,-410.34172593,0.00021801,2]
[334412311,1723057834119,-461.1,0.00021918,2]
[334412312,1723057834129,-150.0,0.00021918,2]
[334412313,1723057834139,-948.85,0.00021918,2]
[334412314,1723057834148,-185.0,0.00022,4]
[334412315,1723057834157,-158.907116,0.00022,4]
[334412316,1723057834167,-410.34172593,0.00022075,2]
[334412317,1723057834176,-10450.95956996,0.00022255,2]
[334412318,1723057834186,-410.34172593,0.00022346,2]
[334412319,1723057834195,-1000.0,0.00022466,2]
[334412320,1723057834205,-150.0,0.00022495,2]
[334412321,1723057834215,-410.34172593,0.00022689,2]
[334412322,1723057834224,-500.0,0.00022713,2]
[334412323,1723057834234,-840.72,0.00022739,5]
[334412324,1723057834243,-840.72,0.00022739,5]
[334412325,1723057834253,-840.72,0.00022739,5]
[334412326,1723057834262,-840.72,0.00022739,5]
[334412327,1723057834271,-840.72,0.00022739,5]
[334412328,1723057834281,-840.72,0.00022739,5]
[334412329,1723057834290,-840.72,0.00022739,5]
[334412330,1723057834299,-840.72,0.00022739,5]
[334412331,1723057834308,-840.72,0.00022739,5]
[334412332,1723057834318,-840.72,0.00022739,5]
[334412333,1723057834327,-840.72,0.00022739,5]
[334412334,1723057834337,-840.72,0.00022739,5]
[334412335,1723057834349,-179.19927372,0.00022739,5]
[334412336,1723057834359,-410.34172593,0.00022858,2]
[334412337,1723057834369,-200.0,0.00023,6]
[334412338,1723057834378,-200.0,0.00023,2]
[334412339,1723057834388,-150.0,0.00023071,2]
[334412340,1723057834397,-410.34172593,0.0002308,2]
[334412341,1723057834406,-500.0,0.00023085,2]
[334412342,1723057834416,-919.38313766,0.00023145,2]
[334412343,1723057834426,-180.0,0.00023205,2]
[334412344,1723057834435,-410.34172593,0.0002345,2]
[334412345,1723057834444,-401.16988804,0.00023451,2]
[334412346,1723057834455,-609.61618884,0.00023451,2]
[334412347,1723057834474,-259.459955,0.00020999,2]
[334412353,1723057839010,-1277.54756506,0.00020588,2]
[334412354,1723057839023,-485.92883144,0.00020588,2]
[334412355,1723057839032,-155.0,0.00020831,2]
[334412356,1723057839042,-903.66300864,0.00020999,2]
[334412357,1723057839053,-282.48007,0.00020999,2]
[334412358,1723057839184,-500.54133244,0.00020999,2]
[334412359,1723057840288,-607.5499219,0.00020999,2]
[334412360,1723057840648,-2446.30571202,0.00020999,2]
[334412361,1723057840658,-387.87019775,0.00023451,2]
[334412362,1723057840670,-1445.11575591,0.00023451,2]
[334412363,1723057840679,-662.795811,0.00023451,2]
[334412364,1723057840689,-378.34,0.00023579,2]
[334412365,1723057840699,-410.34172593,0.00023611,2]
[334412366,1723057840708,-150.0,0.00023648,2]
[334412367,1723057840718,-1000.0,0.00023669,2]
[334412368,1723057840727,-676.06380019,0.00023873,2]
[334412369,1723057840736,-1626.44666663,0.00023873,2]
[334412370,1723057840756,-1302.95233226,0.00023873,2]
[334412371,1723057840767,-1518.84853605,0.00023873,2]
[334412372,1723057840777,-350.26745471,0.00023873,2]
[334412373,1723057840788,-336.79088424,0.00023873,2]
[334412374,1723057840799,-1401.9787652,0.00023873,2]
[334412375,1723057840808,-609.84726612,0.00023873,7]
[334412376,1723057840817,-194.03896965,0.00023873,2]
[334412378,1723057840826,-500.5414,0.000239,2]
[334412380,1723057840835,-410.34172593,0.00023942,2]
[334412381,1723057840845,-258.0,0.00024,7]
[334412382,1723057840856,-1000.0,0.00024,12]
[334412383,1723057840866,-1000.0,0.00024,12]
[334412384,1723057840882,-1000.0,0.00024,12]
[334412385,1723057840891,-1000.0,0.00024,12]
[334412386,1723057840900,-1000.0,0.00024,12]
[334412387,1723057840909,-1000.0,0.00024,12]
[334412388,1723057840918,-1057.13169744,0.00024006,2]
[334412389,1723057840927,-1062.17667788,0.00024006,2]
[334412390,1723057840937,-2500.0,0.00024021,2]
[334412391,1723057840946,-2500.0,0.0002407,2]
[334412392,1723057840955,-308.13974125,0.00024124,2]
[334412393,1723057840965,-322.98902537,0.00024124,2]
[334412394,1723057840974,-308.13974125,0.00024124,2]
[334412395,1723057840984,-1109.41623708,0.00024124,2]
[334412396,1723057840993,-624.10934651,0.00024124,2]
[334412397,1723057841003,-2024.14563285,0.00024124,2]
[334412398,1723057841012,-439.89968088,0.00024124,2]
[334412399,1723057841021,-624.10934651,0.00024124,2]
[334412400,1723057841031,-258.56673339,0.00024124,2]
[334412401,1723057841041,-500.0,0.00024138,2]
[334412402,1723057841050,-410.34172606,0.00024149,2]
[334412403,1723057841059,-193.93945987,0.00024219,2]
[334412404,1723057841069,-150.0,0.00024225,2]
[334412405,1723057841078,-979.0,0.0002425,2]
[334412406,1723057841088,-20000.0,0.000243,2]
[334412407,1723057841097,-1000.0,0.000243,2]
[334412408,1723057841112,-2500.0,0.000243,2]
[334412409,1723057841122,-840.72,0.00024319,5]
[334412410,1723057841131,-4981.1471,0.00024327,2]
[334412411,1723057841140,-302.7628,0.000244,2]
[334412412,1723057841150,-856.31720189,0.000244,2]
[334412418,1723057843385,-444.24779552,0.00023873,2]
[334412419,1723057843397,-839.56223192,0.00023873,2]
[334412420,1723057843406,-280.66739811,0.000244,2]
[334412421,1723057843416,-5682.30127102,0.000244,2]
[334412422,1723057843427,-463.3999995,0.000244,2]
[334412423,1723057843438,-726.912,0.000244,2]
[334412424,1723057843471,-529.685291,0.000244,2]
[334412425,1723057843482,-6644.55524363,0.000244,2]
[334412426,1723057843493,-2447.60779868,0.000244,2]
[334412427,1723057843504,-7440.45079688,0.000244,2]
[334412428,1723057843515,-328.39001,0.000244,2]
[334412429,1723057843531,-571.571,0.000244,2]
[334412430,1723057843778,-4949.9802,0.000244,2]
[334412431,1723057843791,-338.33948636,0.000244,2]
[334412432,1723057843915,-311.7686698,0.000244,2]
[334412438,1723057844190,-673.79383636,0.000244,2]
[334412463,1723057846271,-844.76711332,0.000244,2]
[334412467,1723057846284,-2104.89394442,0.000244,2]
[334412470,1723057846295,-5543.1844,0.000244,2]
[334412488,1723057846398,-280.20107097,0.000244,2]
[334412493,1723057846509,-552.32,0.000244,2]
[334412528,1723059032691,-193.93945987,0.000109,2]
[334412530,1723059032701,-343.28830761,0.000109,2]
[334412531,1723059032710,-678.11569792,0.00010997,2]
[334412532,1723059032719,-13795.7972946,0.00010999,2]
[334412539,1723059038484,-426.46526203,0.00010999,2]
[334412540,1723059038495,-782.42871167,0.00010999,2]
[334412541,1723059038549,-783.45476951,0.00010999,2]
[334412542,1723059038619,-6035.8958172,0.00010999,2]
[334412543,1723059038632,-6321.61718827,0.00010999,2]
[334412544,1723059038642,-5008.52558207,0.00010999,2]
[334412545,1723059038653,-450.20063807,0.00010999,2]
[334412546,1723059038664,-576.90968791,0.00010999,2]
[334412547,1723059038934,-1203.88782761,0.00010999,2]
[334412548,1723059038945,-3444.51359154,0.00010999,2]
[334412549,1723059038957,-2412.42714,0.00010999,2]
[334412554,1723059040646,-347.50656736,0.00010999,2]
[334412555,1723059040659,-1761.72,0.00010999,2]
[334412556,1723059040671,-807.73443717,0.00010999,2]
[334412557,1723059040682,-2916.0,0.00010999,2]
[334412558,1723059040697,-473.09842927,0.00010999,2]
[334412559,1723059040709,-1547.0,0.00010999,2]
[334412560,1723059040733,-6314.13675292,0.00010999,2]
[334412561,1723059040742,-500.0,0.00010999,2]
[334412562,1723059040752,-500.0,0.00010999,2]